Cogmind - Beta 13 @@@ ROGUE MODE // 2024.04.30 @ 12:04:16 Player: Oldman Pu Result: Destroyed by R7-BA6(R) with Subdweller Laser Performance ------------- Evolutions (0) 0 Regions Visited (2) 400 Robots Destroyed (21) 105 Value Destroyed (453) 453 Prototype IDs (0) 0 Alien Tech Used (0) 0 Bonus (0) 0 TOTAL SCORE: 958 Bonus ------- None Cogmind --------- Core Integrity 0/250 Matter 291/300 Energy 246/250 System Corruption 0% Temperature Cool (6) Movement Rolling (115) Ox1 Location -10/Subcaves Parts ------- > --- POWER (1) -------- Ion Engine > --- PROPULSION (2) --- Compact Wheel Compact Wheel > --- UTILITY (2) ------ Improved Heat Sink High-capacity Storage Unit > --- WEAPON (2) ------- Beam Cannon Assault Rifle > --- INVENTORY (20) --- Improved Ion Engine Improved Ion Engine Improved Ion Engine Heat Sink Core Shielding Medium Laser Light Assault Rifle Light Cannon Peak State ------------ > --- POWER ------------ Ion Engine > --- PROPULSION ------- Compact Wheel Compact Wheel > --- UTILITY ---------- Improved Heat Sink High-capacity Storage Unit > --- WEAPON ----------- Beam Cannon Assault Rifle > --- INVENTORY -------- Improved Ion Engine Improved Ion Engine Improved Ion Engine Heat Sink Core Shielding Medium Laser Light Assault Rifle Light Cannon [Rating: 10] Favorites ----------- Power Improved Ion Engine Engine Improved Ion Engine Propulsion Compact Wheel Wheel Compact Wheel Utility High-capacity Storage Unit Device Improved Heat Sink Storage High-capacity Storage Unit Protection Core Shielding Weapon Medium Laser Energy Gun Medium Laser Energy Cannon Beam Cannon Ballistic Gun Light Assault Rifle Build | -11 -10 -10 ------- Run | Yrd Mat Sub Slots Evolved . | . . . Power . | . . . Propulsion . | . . . Utility . | . . . Weapon . | . . . Parts Attached 20 | 6 14 . Power 5 | 1 4 . Engine 5 | 1 4 . Core . | . . . Reactor . | . . . Propulsion 5 | 2 3 . Treads . | . . . Leg . | . . . Wheel 5 | 2 3 . Hover . | . . . Flight . | . . . Utility 5 | 1 4 . Device 1 | . 1 . Storage 2 | 1 1 . Processor . | . . . Hackware . | . . . Protection 2 | . 2 . Artifact . | . . . Weapon 5 | 2 3 . Energy Gun 1 | 1 . . Energy Cannon 1 | . 1 . Ballistic Gun 3 | 1 2 . Ballistic Cannon . | . . . Launcher . | . . . Special Weapon . | . . . Impact Weapon . | . . . Slashing Weapon . | . . . Piercing Weapon . | . . . Special Melee Weapon . | . . . Unidentified Prototypes . | . . . Parts Lost 1 | . 1 . Power . | . . . Propulsion . | . . . Utility 1 | . 1 . Weapon . | . . . Highest Loss Streak 1 | . 1 . To Critical Strikes . | . . . Average Slot Usage (%) 97 | . 97 100 Engine 13 | . 13 14 Wheel 27 | . 27 28 Device 2 | . 2 14 Storage 16 | . 16 14 Protection 7 | . 7 . Energy Gun 9 | . 9 . Energy Cannon 4 | . 4 14 Ballistic Gun 14 | . 14 14 Naked Turns . | . . . Heaviest Build 55 | 13 55 51 Greatest Support 32 | 32 32 32 Greatest Overweight (x) 14 | . 14 1 Average Overweight (x) . | . . 1 Largest Inventory Capacity 20 | 8 20 20 Average Capacity 19 | 6 19 20 Most Carried 8 | . 8 8 Average Carried 6 | . 6 8 Final Capacity 20 | 8 20 20 Final Carried 8 | . 8 8 Class Distribution -------------------- 100% | Mutant Dominant Class ---------------- Mutant | -10/Materials Mutant | -10/Subcaves Resources | -11 -10 -10 ----------- Run | Yrd Mat Sub Matter Collected 497 | 213 284 . Remotely . | . . . Salvage Created 635 | . 590 45 Parts 42 | . 40 2 Haulers Intercepted 2 | . 2 . Recyclers Shooed . | . . . Parts Field Recycled . | . . . Retrieved Matter . | . . . Parts Self-Destructed . | . . . Prevented . | . . . Kills | -11 -10 -10 ------- Run | Yrd Mat Sub Combat Hostiles Destroyed 15 | . 14 1 Guns 13 | . 13 . Cannons 1 | . 1 . Classes Destroyed 6 | . 5 1 Hauler 2 | . 2 . Operator 1 | . 1 . Watcher 3 | . 3 . Swarmer 6 | . 6 . Grunt 8 | . 8 . Subdweller 1 | . . 1 Best Kill Streak 4 | . 4 1 Combat Bots Only 3 | . 3 1 Max Kills in Single Turn 1 | . 1 1 Gunslinging . | . . . Exploded . | . . . Melee . | . . . Uniques/NPCs Destroyed . | . . . Combat | -11 -10 -10 -------- Run | Yrd Mat Sub Hostile Shots Fired 87 | . 82 5 Missed 26 | . 25 1 Damage Taken 732 | . 649 83 Core 270 | . 228 42 Absorbed by Shields . | . . . Redirected to Shielding 13 | . 13 . Core Remaining (%) 100 | 100 . . Volleys Fired 73 | . 70 3 Largest 2 | . 2 2 Hottest 80 | . 80 80 Shots Fired 146 | . 140 6 Gun 127 | . 124 3 Cannon 19 | . 16 3 Launcher . | . . . Special . | . . . Kinetic 73 | . 70 3 Thermal 73 | . 70 3 Explosive . | . . . Electromagnetic . | . . . Robot Hit Streak 11 | . 10 11 Robot Miss Streak 5 | . 5 . Penetration Max . | . . . Secondary Targets 1 | . 1 . Max Gunslinging Chain 1 | . 1 . Shots Hit Robots 86 | . 81 5 Core Hits 34 | . 33 1 Critical Kills 1 | . . 1 Critical Parts Destroyed . | . . . Critical Strikes 4 | . 3 1 Burn 3 | . 3 . Meltdown 1 | . . 1 Melee Attacks . | . . . Impact . | . . . Slashing . | . . . Piercing . | . . . Sneak Attacks . | . . . Combat Hostiles . | . . . Follow-up Attacks . | . . . Damage Inflicted 1050 | . 968 82 Guns 842 | . 813 29 Cannons 208 | . 155 53 Explosions . | . . . Melee . | . . . Ramming . | . . . Kinetic 380 | . 351 29 Thermal 670 | . 617 53 Explosive . | . . . Electromagnetic . | . . . Impact . | . . . Slashing . | . . . Piercing . | . . . Highest Corruption . | . . . Average Corruption . | . . . Corruption Purged . | . . . Corruption Blocked . | . . . Overload Shots . | . . . Overflow Damage . | . . . Projectiles . | . . . Explosions . | . . . Melee . | . . . Knockbacks . | . . . Impact . | . . . Kinetic . | . . . Secondary . | . . . Self-Inflicted Damage . | . . . Shots . | . . . Rammed . | . . . Targets Rammed . | . . . Kicked . | . . . Crushed . | . . . Highest Temperature 278 | . 278 . Average Temperature 67 | . 67 . Received Heat Transfer 198 | . 174 24 Siege Activations . | . . . Robots Corrupted . | . . . Combat Hostiles . | . . . Parts Fried . | . . . Impact Corruptions . | . . . Robots Melted 1 | . . 1 Combat Hostiles 1 | . . 1 Parts Melted 7 | . 3 4 Heat Transferred 2035 | . 1924 111 Parts Sabotaged . | . . . Parts Stolen . | . . . Parts Stripped . | . . . Power Chain Reactions . | . . . Alert | -11 -10 -10 ------- Run | Yrd Mat Sub Peak Influence 188 | . 188 . Initial . | . . . Average 83 | . 85 . Maximum Alert Level . | . . . Low Security (%) 100 | 100 100 . Level 1 . | . . . Level 2 . | . . . Level 3 . | . . . Level 4 . | . . . Level 5 . | . . . High Security . | . . . Max Security . | . . . Squads Dispatched 5 | . 5 . Investigation 1 | . 1 . Extermination . | . . . Reinforcement 4 | . 4 . Assault . | . . . Garrison . | . . . Intercept . | . . . Searches Triggered . | . . . Construction Impeded . | . . . Haulers Reinforced . | . . . Active Scanning Responses . | . . . Cargo Convoy Interrupts . | . . . Stealth | -11 -10 -10 --------- Run | Yrd Mat Sub Distress Signals 1 | . 1 . Communications Jammed . | . . . Distress Signals . | . . . Times Spotted 27 | . 25 2 Peak Tracking Total 3 | . 3 2 Tactical Retreats . | . . . Traps | -11 -10 -10 ------- Run | Yrd Mat Sub Traps Triggered 6 | . 6 . Indirectly . | . . . Trap Hack Attempts . | . . . Triggered . | . . . Disarmed . | . . . Reprogrammed . | . . . Reused . | . . . Traps Extracted . | . . . Installed . | . . . Triggered . | . . . Machines | -11 -10 -10 ---------- Run | Yrd Mat Sub Machines Disabled . | . . . Max in Single Turn . | . . . Machines Repaired . | . . . Machines Dismantled . | . . . Machines Sabotaged . | . . . Overloaded Fab Kills . | . . . Hacking | -11 -10 -10 --------- Run | Yrd Mat Sub Machines Accessed 5 | . 5 . Terminals 5 | . 5 . Fabricators . | . . . Repair Stations . | . . . Recycling Units . | . . . Scanalyzers . | . . . Garrison Access . | . . . Total Hacks 9 | . 9 . Successful 7 | . 7 . Failed 2 | . 2 . Catastrophic . | . . . Database Lockouts . | . . . Manual . | . . . Terminals 9 | . 9 . Fabricators . | . . . Repair Stations . | . . . Recycling Units . | . . . Scanalyzers . | . . . Garrison Access . | . . . Terminal Hacks 7 | . 7 . Record 5 | . 5 . Emergency Access Points 1 | . 1 . Transport Status 1 | . 1 . Fabricator Hacks . | . . . Repair Station Hacks . | . . . Recycling Unit Hacks . | . . . Scanalyzer . | . . . Garrison Access Hacks . | . . . Unauthorized Hacks . | . . . Terminals . | . . . Fabricators . | . . . Repair Stations . | . . . Recycling Units . | . . . Scanalyzers . | . . . Garrison Access . | . . . Data Cores Recovered . | . . . Used . | . . . Hacking Detections 3 | . 3 . Full Trace Events . | . . . Feedback Events . | . . . Feedback Blocked . | . . . Robot Schematics Acquired . | . . . Robots Built . | . . . Authchips . | . . . Time . | . . . Total Robot Build Rating . | . . . Part Schematics Acquired . | . . . Parts Built . | . . . Authchips . | . . . Time . | . . . Total Part Build Rating . | . . . Parts Repaired . | . . . Time . | . . . Parts Recycled . | . . . Recycled Matter . | . . . Retrieved Matter . | . . . Retrieved Components . | . . . Parts Scanalyzed . | . . . Part Schematics Acquired . | . . . Parts Damaged . | . . . Bothacking | -11 -10 -10 ------------ Run | Yrd Mat Sub Used RIF Installer . | . . . Robots Hacked . | . . . Non-combat . | . . . Combat . | . . . Robot Hacks Applied . | . . . Relay Couplers Released . | . . . Fabnet Peak Effective % . | . . . Robots Rewired . | . . . Allies Hacked . | . . . Hacks Repelled . | . . . Allies | -11 -10 -10 -------- Run | Yrd Mat Sub Total Allies . | . . . Largest Group . | . . . Highest-Rated Group . | . . . Highest-Rated Ally . | . . . Total Orders . | . . . Ally Attacks . | . . . Total Damage . | . . . Kills . | . . . Allies Corrupted . | . . . Allies Melted . | . . . Intel | -11 -10 -10 ------- Run | Yrd Mat Sub Robot Analysis Total . | . . . Derelict Logs Recovered . | . . . Drone Launches . | . . . Drone Recoveries . | . . . Exploration | -11 -10 -10 ------------- Run | Yrd Mat Sub Turns Passed 1398 | 41 1336 21 Spaces Moved 942 | 36 895 11 Core 8 | 6 2 . Treads . | . . . Legs . | . . . Wheels 934 | 30 893 11 Hover . | . . . Flight . | . . . Fastest Speed 50 | 50 100 115 Average Speed 114 | 91 115 115 Slowest Speed 750 | 100 750 115 Overloaded Moves . | . . . Propulsion Burnouts . | . . . Robots Hopped . | . . . Cave-ins Triggered . | . . . Exploration Rate (%) 34 | 3 99 1 Regions Visited 2 Branch Regions 1 Pre-discovered Areas . | . . . Known Exits Taken . | . . . Unknown Exits Taken 2 | 1 1 . Scrap Searched . | . . . Spaces Dug . | . . . Terrain Destroyed . | . . . Melee . | . . . Projectile . | . . . AOE . | . . . Terrain Rammed . | . . . Walls Destroyed . | . . . Machines Disabled . | . . . Actions | -11 -10 -10 --------- Run | Yrd Mat Sub Total 1116 | 41 1060 15 Wait 72 | . 71 1 Move 940 | 35 894 11 Hop . | . . . Pick Up 7 | . 7 . Fast Attach 16 | 6 10 . Attach 1 | . 1 . Detach 1 | . 1 . Swap 3 | . 3 . Drop 3 | . 3 . Fire 73 | . 70 3 Melee . | . . . Ram . | . . . Kick . | . . . Crush . | . . . Escape Stasis . | . . . Rewire . | . . . Trap . | . . . Miscellaneous . | . . . Route ------- -11/Scrapyard -10/Materials (discovered 6 exits: [*Mat x3] / [*Min x2] / [*Sub]) -10/Subcaves History --------- Turn | Location | Event 26 | -11/Scrapyard | Discovered new exit (range 16) 42 | -11/Scrapyard | Entered Materials 186 | -10/Materials | Discovered new exit (range 11) 303 | -10/Materials | Build established: Mutant 322 | -10/Materials | Discovered new exit (range 15) 583 | -10/Materials | Discovered new exit (range 8) 772 | -10/Materials | Core integrity fell below 50% 963 | -10/Materials | Discovered new exit (range 13) 1136 | -10/Materials | Discovered new exit (range 12) 1156 | -10/Materials | Core integrity fell below 20% 1368 | -10/Materials | Discovered new exit (range 10) 1378 | -10/Materials | Entered Subcaves 1399 | -10/Subcaves | Destroyed by R7-BA6(R) with Subdweller Laser Last Messages --------------- 01183_ W-16 Scout destroyed. 01185_ K-01 Serf collects debris. 01185_ U-05 Engineer lays Concrete. 01188_ K-01 Serf collects debris. 01193_ R-06 Scavenger collects Visual Processing Unit. 01197_ Acquired 8 matter. 01202_ Acquired 25 matter. 01225_ R-06 Scavenger collects Aluminum Leg. 01229_ R-06 Scavenger collects Heat Sink. 01239_ U-05 Engineer lays Concrete. 01361_ Acquired 3 matter. 01368_ EXIT=FOUND LOCATION=UNKNOWN AMBIENT_HEAT=-10 GOAL=ESCAPE 01395_ YZ-NT0(R) suffers critical hit (Meltdown). 01395_ Sub. Optics melted. 01395_ Sub. Monowheel melted. 01395_ Sub. Laser melted. 01395_ Disposable Heat Sink melted. Map ----- +----------------------------------------------------+ | | | | | | | | | | | | | ?????????????????????????????????????????????????? | | ?????????????????????????????????????????????????? | | ?????????????????????????????????????????????????? | | ?????????????????????????????????????????????????? | | ?????????????????????????????????????????????????? | | ?????????????????????????????????????????????????? | | ?????????????????????????????????????????????????? | | ?????????????????????????????????????????????????? | | ?????????????????????????????????????????????????? | | ?????????????????????????????????????????????????? | | ?????????????????????????????????????????????????? | | ?????????????????????????????????????????????????? | | ?????????????????????????????????????????????????? | | ?????????????????????????????????????????????????? | | ????????????????##???###?????????????????????????? | | ??????????####### ### ??????#####??????????????? | | ??????????# ####### ## ## #??????? | | ?????????? #R # # ""????? | | ?????????????????# !%! ""?????? | | ?????????????????## ###@# ## """ # # ???? | | ??????????????????# ???###### "#??????????? | | ??????????????????# ?????????# ######??????????? | | ?????????????????????????????#####???????????????? | | ?????????????????????????????????????????????????? | | ?????????????????????????????????????????????????? | | ?????????????????????????????????????????????????? | | ?????????????????????????????????????????????????? | | ?????????????????????????????????????????????????? | | ?????????????????????????????????????????????????? | | ?????????????????????????????????????????????????? | | ?????????????????????????????????????????????????? | | ?????????????????????????????????????????????????? | | ?????????????????????????????????????????????????? | | ?????????????????????????????????????????????????? | | ?????????????????????????????????????????????????? | | ?????????????????????????????????????????????????? | | ?????????????????????????????????????????????????? | | ?????????????????????????????????????????????????? | | ?????????????????????????????????????????????????? | | ?????????????????????????????????????????????????? | | ?????????????????????????????????????????????????? | | ?????????????????????????????????????????????????? | | ?????????????????????????????????????????????????? | | ?????????????????????????????????????????????????? | +----------------------------------------------------+ Best States ------------- Heat Dissipation 39 Energy Generation 12 Energy Capacity 265 Matter Stores 300 Matter Capacity 300 Sight Range 16 Terrain Scan Density 10 Armor Coverage 150 Core Shielding 20 Evasion (%) 40 Item Schematics ----------------- None Robot Schematics ------------------ None Fabricated ------------ Nothing Alien Tech Used ----------------- None Achievements -------------- None Challenges ------------ None Game ------ Seed MolecularTargetNanovents Manual? 0 Play Time 00:10:42 Cumulative 290.6 hours Start 2024.04.30 @ 11:43:22 End 2024.04.30 @ 12:04:16 Sessions 1 Manual Loads 0 Difficulty Rogue Special Mode None Game No. 240 Rogue 228 Adventurer 12 Explorer 0 Win Type - Total 1 Types 1/0/0/0/0/0/0/0/0 Lore% 34 Gallery% 51 Achievement% 37 Wizard Run 0 Options --------- Layout 1 ASCII 0 Keyboard 0 Movement Mouse Keybinds 0 Fullscreen 1 Font 32/SmallcapsGlow Map View 77x35 Zoom Use 0% Tactical HUD 1 Map Filters NONE Filters NONE Steam 1 RUN: 5eaa5c97-9b5a-4e98-a8a2-309d37055741